bitfinex/quotes_SOLUSD_20250929
["timestamp","ask_amount","ask_price","bid_price","bid_amount"]
[1759136172710,26.71,209.46,209.45,0.1]
[1759136173428,31.48418122,209.46,209.45,0.1]
[1759136173598,26.71,209.46,209.45,0.1]
[1759136174712,33.01375022,209.46,209.45,0.1]
[1759136174912,46.60934423,209.46,209.45,0.1]
[1759136175112,0.72,209.48,209.45,0.1]
[1759136175703,26.0,209.47,209.45,0.1]
[1759136175898,26.0,209.47,209.45,4.87440916]
[1759136176105,26.72,209.47,209.45,0.1]
[1759136176326,26.0,209.46,209.45,0.1]
[1759136176628,26.0,209.47,209.45,0.1]
[1759136176814,26.0,209.46,209.45,0.1]
[1759136177017,26.0,209.48,209.45,0.1]
[1759136177507,26.72,209.48,209.45,0.1]
[1759136178718,26.0,209.48,209.45,0.1]
[1759136179028,26.72,209.48,209.45,0.1]
[1759136179815,26.0,209.47,209.45,4.87439917]
[1759136180211,26.0,209.47,209.45,0.1]
[1759136181631,26.0,209.47,209.45,4.87436658]
[1759136182325,26.0,209.48,209.45,4.87436658]
[1759136182524,26.0,209.48,209.46,0.71]
[1759136182718,26.0,209.47,209.45,4.87436658]
[1759136184633,0.72,209.47,209.45,0.1]
[1759136187736,0.72,209.46,209.45,0.1]
[1759136188534,26.72,209.46,209.45,0.1]
[1759136189233,26.72,209.49,209.45,0.1]
[1759136189425,0.72,209.48,209.45,0.1]
[1759136189935,26.0,209.49,209.45,0.1]
[1759136190240,0.72,209.47,209.45,0.1]
[1759136194235,26.0,209.49,209.45,4.87437011]
[1759136194428,0.72,209.48,209.45,4.87437011]
[1759136194613,0.72,209.47,209.45,4.87437011]
[1759136194818,26.72,209.47,209.45,0.1]
[1759136196844,26.0,209.47,209.45,0.1]
[1759136197023,0.72,209.46,209.45,0.1]
[1759136197224,26.72,209.47,209.45,0.1]
[1759136198145,26.0,209.47,209.45,0.1]
[1759136198442,26.72,209.47,209.45,0.1]
[1759136200123,0.72,209.46,209.45,0.1]
[1759136205145,26.0,209.47,209.45,0.1]
[1759136205334,26.72,209.47,209.45,0.1]
[1759136205642,0.72,209.46,209.45,0.1]
[1759136216556,26.0,209.47,209.45,0.1]
[1759136216739,26.67,209.47,209.45,0.1]
[1759136216941,0.67,209.46,209.45,0.1]
[1759136217555,31.44373396,209.48,209.45,0.1]
[1759136221550,0.67,209.47,209.45,0.1]
[1759136222360,30.77373396,209.48,209.45,0.1]
[1759136222544,0.67,209.46,209.45,0.1]
[1759136226465,30.77379424,209.48,209.45,0.1]
[1759136226765,26.0,209.46,209.45,0.1]
[1759136227165,26.67,209.46,209.45,0.1]
[1759136227344,40.26559401,209.46,209.45,0.1]
[1759136227749,45.03977523,209.46,209.45,0.1]
[1759136230860,0.67,209.46,209.45,0.1]
[1759136231057,5.44418122,209.46,209.45,0.1]
[1759136242983,21.4317786,209.46,209.45,0.1]
[1759136243774,23.34698293,209.46,209.45,0.1]
[1759136243977,26.57209255,209.46,209.45,0.1]
[1759136244285,21.4317786,209.46,209.45,0.1]
[1759136244680,24.65688822,209.46,209.45,0.1]
[1759136245788,23.34698293,209.46,209.45,0.1]
[1759136246084,26.57209255,209.46,209.45,0.1]
[1759136246272,196.21209255,209.46,209.45,0.1]
[1759136246793,13.59559401,209.45,209.44,0.1]
[1759136247092,53.66070363,209.45,209.44,0.1]
[1759136247386,54.38070363,209.45,209.44,0.1]
[1759136247586,17.54070363,209.45,209.44,0.1]
[1759136247761,54.38070363,209.45,209.44,0.1]
[1759136247959,56.29627483,209.45,209.44,0.1]
[1759136248782,61.07068399,209.45,209.44,0.1]
[1759136249373,24.23068399,209.45,209.44,0.1]
[1759136249679,61.07068399,209.45,209.44,0.1]
[1759136250569,23.51068399,209.45,209.44,0.1]
[1759136250772,153.08557437,209.45,209.44,0.1]
[1759136250969,142.71508998,209.45,209.44,0.77]
[1759136251274,140.79951878,209.45,209.44,0.77]
[1759136251473,137.57440916,209.45,209.44,0.77]
[1759136251671,26.0,209.45,209.44,0.77]
[1759136251867,13.59559401,209.48,209.44,0.77]
[1759136252066,26.0,209.45,209.44,0.77]
[1759136252684,18.36950969,209.48,209.44,0.77]
[1759136252887,26.0,209.45,209.44,0.77]
[1759136253787,26.0,209.46,209.44,0.77]
[1759136256290,26.0,209.46,209.45,0.67]
[1759136264267,26.0,209.48,209.45,5.44440916]
[1759136264496,26.0,209.48,209.46,0.67]
[1759136264794,26.0,209.48,209.47,0.67]
[1759136266099,26.0,209.48,209.45,4.77439734]
[1759136266297,26.0,209.48,209.45,5.44439734]
[1759136268686,26.0,209.48,209.46,0.67]
[1759136268979,26.0,209.47,209.45,4.77439734]
[1759136269181,26.0,209.47,209.45,5.44439734]
[1759136270398,26.0,209.48,209.46,5.44418122]
[1759136271901,26.0,209.47,209.45,4.77440916]
[1759136272112,26.0,209.47,209.45,5.48440916]
[1759136272993,26.0,209.47,209.45,4.77440916]
[1759136274205,0.68,209.49,209.45,5.48440916]
[1759136274410,26.0,209.48,209.46,0.71]
[1759136275891,26.0,209.48,209.45,4.77440916]
[1759136275892,26.0,209.49,209.47,0.71]
[1759136276091,26.0,209.49,209.45,4.77440916]
[1759136276092,3.89970595,209.52,209.48,0.71]
[1759136276424,26.0,209.5,209.48,5.48352771]
[1759136276619,26.0,209.5,209.48,4.77352771]
[1759136276791,3.21970595,209.53,209.49,0.71]
[1759136277111,26.0,209.53,209.49,0.71]
[1759136277302,26.68,209.53,209.49,0.71]
[1759136278327,26.68,209.53,209.5,4.77326968]
[1759136278491,0.68,209.53,209.5,4.77326968]
[1759136279203,0.68,209.53,209.49,0.71]
[1759136279204,26.68,209.55,209.48,16.70803894]
[1759136279398,26.68,209.55,209.51,0.71]
[1759136280102,26.0,209.55,209.51,0.71]
[1759136280314,0.68,209.54,209.49,0.71]
[1759136280612,0.68,209.53,209.49,0.71]
[1759136280814,29.89970595,209.55,209.5,0.71]
[1759136280996,26.68,209.55,209.51,0.71]
[1759136281196,26.0,209.54,209.51,5.4828726]
[1759136281398,26.68,209.54,209.51,5.4828726]
[1759136282420,0.68,209.54,209.51,5.4828726]
[1759136283012,30.77190711,209.56,209.48,11.93431353]
[1759136283013,30.77190711,209.56,209.49,0.71]
[1759136283205,26.68,209.53,209.49,0.71]
[1759136283931,1.53080035,209.51,209.44,0.1]
[1759136284105,27.53080035,209.51,209.44,0.1]
[1759136284306,0.68,209.5,209.44,4.87459858]
[1759136284608,0.68,209.49,209.44,4.87459858]
[1759136284918,0.68,209.48,209.44,5.58459858]
[1759136285110,0.68,209.47,209.44,4.87459858]
[1759136285693,26.0,209.48,209.44,5.58459858]
[1759136285892,26.68,209.48,209.44,5.58459858]
[1759136286097,26.68,209.48,209.44,4.87459858]
[1759136286313,0.68,209.48,209.45,0.71]
[1759136286517,0.68,209.48,209.44,4.87459858]
[1759136286727,0.68,209.48,209.44,5.58459858]
[1759136288939,26.0,209.49,209.45,5.48420906]
[1759136289131,26.68,209.49,209.45,5.48420906]
[1759136289323,0.68,209.48,209.45,4.77420906]
[1759136290542,0.68,209.48,209.45,5.48420906]
[1759136291636,26.0,209.49,209.45,5.48420906]
[1759136291821,26.0,209.48,209.45,5.48420906]
[1759136292520,26.0,209.49,209.46,5.4841076]
[1759136292837,26.0,209.48,209.46,5.4841076]
[1759136293429,18.36839817,209.53,209.47,0.66]
[1759136293726,0.7,209.53,209.47,37.46]
[1759136293924,26.0,209.52,209.48,0.66]
[1759136294126,0.7,209.53,209.49,0.66]
[1759136294326,4.77233086,209.55,209.49,0.66]
[1759136294524,26.0,209.52,209.49,4.77332975]
[1759136294725,26.7,209.52,209.49,5.43332975]
[1759136295125,26.7,209.52,209.49,4.77332975]
[1759136295432,26.0,209.52,209.49,5.43332975]
[1759136296217,26.7,209.53,209.49,5.43332975]
[1759136296935,0.7,209.52,209.49,4.77332975]
[1759136298408,0.7,209.52,209.49,5.43332975]
[1759136299119,0.7,209.52,209.49,4.77332975]
[1759136299937,0.7,209.52,209.49,5.43332975]
[1759136300117,26.0,209.53,209.49,5.43332975]
[1759136300314,26.0,209.53,209.5,0.66]
[1759136300519,26.7,209.53,209.49,4.77332975]
[1759136300726,26.7,209.53,209.49,5.43332975]
[1759136301138,26.0,209.53,209.49,5.43332975]
[1759136301338,0.71,209.52,209.49,5.43332975]
[1759136304839,0.71,209.52,209.5,41.57316835]
[1759136305018,26.71,209.54,209.51,0.7]
[1759136305515,26.0,209.54,209.51,0.7]
[1759136306638,26.0,209.53,209.51,0.7]
[1759136306836,26.0,209.53,209.5,42.27316835]
[1759136308248,26.71,209.53,209.5,42.27316835]
[1759136309240,26.71,209.53,209.5,41.57316835]
[1759136309444,26.71,209.53,209.5,41.57324172]
[1759136309842,30.77245081,209.54,209.5,42.27324172]
[1759136310142,26.71,209.53,209.5,42.27324172]
[1759136311742,26.0,209.53,209.5,42.27324172]
[1759136311931,26.71,209.53,209.5,42.27324172]
[1759136313743,26.0,209.53,209.5,42.27324172]
[1759136314141,26.71,209.53,209.5,42.27324172]
[1759136314349,26.71,209.53,209.5,41.57324172]
[1759136314649,0.71,209.52,209.5,41.57324172]
[1759136315550,26.0,209.53,209.5,41.57324172]
[1759136315851,26.71,209.53,209.5,42.27324172]
[1759136319223,26.0,209.53,209.51,0.7]
[1759136319426,26.71,209.53,209.5,4.77324172]
[1759136319627,26.0,209.53,209.51,36.78]
[1759136319840,26.71,209.54,209.51,36.78]
[1759136320254,26.0,209.53,209.51,36.78]
[1759136320437,26.0,209.53,209.51,41.5529528]
[1759136320639,26.71,209.53,209.51,41.5529528]
[1759136321456,26.0,209.54,209.51,41.5529528]
[1759136321635,29.92680386,209.54,209.51,41.5529528]
[1759136321834,26.71,209.54,209.51,41.5529528]
[1759136322156,26.71,209.53,209.51,41.5529528]
[1759136322452,26.0,209.53,209.51,41.5529528]
[1759136322855,26.71,209.53,209.51,41.5529528]
[1759136326856,26.0,209.53,209.51,41.5529528]
[1759136327160,26.0,209.54,209.51,42.2529528]
[1759136327348,26.71,209.54,209.51,42.2529528]
[1759136332466,26.0,209.53,209.51,41.5529528]
[1759136332636,26.0,209.53,209.51,4.7729528]
[1759136332841,26.0,209.53,209.52,36.76]
[1759136335072,3.93069785,209.54,209.52,36.76]
[1759136335239,26.0,209.53,209.52,36.76]
[1759136335444,26.0,209.53,209.51,4.7729528]
[1759136335662,26.0,209.53,209.52,36.76]
[1759136335865,3.93069785,209.54,209.52,36.76]
[1759136336068,26.0,209.53,209.52,41.53281405]
[1759136336656,26.0,209.53,209.52,4.77281405]
[1759136336851,26.0,209.53,209.52,41.53281405]
[1759136337166,3.22069785,209.54,209.52,4.77281405]
[1759136337341,26.0,209.53,209.52,41.53281405]
[1759136337951,3.22069785,209.54,209.52,41.53281405]
[1759136338157,0.66,209.55,209.52,41.53281405]
[1759136338350,26.0,209.53,209.52,41.53281405]
[1759136339768,29.22487817,209.53,209.52,41.53281405]
[1759136340273,29.22487986,209.53,209.52,41.53281405]
[1759136340472,26.0,209.53,209.52,41.53281405]
[1759136341076,0.66,209.54,209.52,4.77281405]
[1759136341278,0.66,209.54,209.53,36.76]
[1759136341464,3.88472219,209.54,209.53,36.76]
[1759136341776,3.22472219,209.54,209.53,36.76]
[1759136342352,3.22472219,209.54,209.52,4.77281405]
[1759136342571,3.22466246,209.54,209.53,36.76]
[1759136342758,3.22466246,209.54,209.52,0.72]
[1759136342959,3.22466246,209.54,209.53,36.76]
[1759136343979,3.22466246,209.54,209.52,0.72]
[1759136344178,3.22466246,209.54,209.53,36.76]
[1759136344479,3.22466246,209.54,209.52,5.49262503]
[1759136344668,3.22466246,209.54,209.52,42.25262503]
[1759136344869,3.88466246,209.54,209.52,41.53262503]
[1759136345382,3.88466246,209.54,209.53,36.76]
[1759136347070,3.22466246,209.54,209.53,36.76]
[1759136347274,39.59559401,209.53,209.44,0.1]
[1759136347578,26.0,209.5,209.44,0.1]
[1759136347765,26.0,209.48,209.44,0.1]
[1759136347972,0.66,209.47,209.44,0.1]
[1759136348188,26.0,209.48,209.44,0.1]
[1759136348381,0.66,209.47,209.44,0.1]
[1759136349080,0.66,209.46,209.44,0.1]
[1759136349474,3.22351535,209.45,209.44,0.1]
[1759136352084,0.66,209.47,209.44,0.1]
[1759136352268,3.87947103,209.46,209.44,0.1]
[1759136352467,0.66,209.46,209.44,0.1]
[1759136353486,0.66,209.45,209.44,0.1]
[1759136353665,3.87884848,209.45,209.44,0.1]
[1759136353867,29.87884848,209.45,209.44,0.1]
[1759136356166,34.65325764,209.45,209.44,0.1]
[1759136356861,29.87884848,209.45,209.44,0.1]
[1759136357089,3.21884848,209.45,209.44,0.1]
[1759136357292,29.21884848,209.45,209.44,0.1]
[1759136357995,29.89884848,209.45,209.44,0.1]
[1759136359789,34.67325764,209.45,209.44,0.1]
[1759136361092,31.45440916,209.45,209.44,0.1]
[1759136361402,34.67325764,209.45,209.44,0.1]
[1759136361568,50.65873614,209.45,209.43,0.1]
[1759136361772,16.81444249,209.44,209.43,0.1]
[1759136361972,53.55444249,209.44,209.43,0.1]
[1759136362173,59.00907961,209.44,209.43,0.1]
[1759136364079,60.9246508,209.44,209.43,0.1]
[1759136365804,24.1846508,209.44,209.43,0.1]
[1759136366009,60.9446508,209.44,209.43,0.1]
[1759136370102,63.33453529,209.44,209.43,0.1]
[1759136371578,60.9446508,209.44,209.43,0.1]
[1759136371776,63.33453529,209.44,209.43,0.1]
[1759136373700,60.2646508,209.44,209.43,0.1]
[1759136374005,62.65453529,209.44,209.43,0.1]
[1759136374191,63.33453529,209.44,209.43,0.1]
[1759136376399,59.43568681,209.44,209.43,0.1]
[1759136377588,60.11568681,209.44,209.43,0.1]
[1759136378208,59.43568681,209.44,209.43,0.1]
[1759136380411,60.11568681,209.44,209.43,0.1]
[1759136380601,63.31846693,209.44,209.43,0.1]
[1759136380911,60.92858244,209.44,209.43,0.1]
[1759136381113,26.55846693,209.44,209.43,0.1]
[1759136381309,60.11568681,209.44,209.43,0.1]
[1759136381610,63.31846693,209.44,209.43,0.1]
[1759136381999,60.92858244,209.44,209.43,0.1]
[1759136382187,62.46084301,209.44,209.43,0.1]
[1759136386920,60.92858244,209.44,209.43,0.1]
[1759136387096,62.46084301,209.44,209.43,0.1]
[1759136387298,61.78084301,209.44,209.43,0.1]
[1759136387790,25.70084301,209.44,209.43,0.1]
[1759136388121,62.50084301,209.44,209.43,0.1]
[1759136394216,66.52184783,209.44,209.43,0.1]
[1759136398235,26.0,209.42,209.41,0.1]
[1759136398436,67.49504069,209.42,209.41,0.1]
[1759136398936,69.41070363,209.42,209.41,0.1]
[1759136399604,74.18579674,209.42,209.41,0.1]
[1759136399810,74.89579674,209.42,209.41,0.1]
[1759136400205,51.73139075,209.42,209.41,1e-08]
[1759136400533,13.59559401,209.41,209.4,0.1]
[1759136400730,53.59837413,209.41,209.4,0.1]
[1759136400926,54.30837413,209.41,209.4,0.1]
[1759136401120,56.22422057,209.41,209.4,0.1]
[1759136401433,56.22422057,209.41,209.39,0.1]
[1759136401636,5.44504069,209.4,209.39,0.1]
[1759136401834,10.22058987,209.4,209.39,0.1]
[1759136402003,8.93365619,209.4,209.39,0.1]
[1759136403129,58.6192502,209.4,209.39,0.1]
[1759136403315,59.3292502,209.4,209.39,1e-08]
[1759136403630,60.86151077,209.4,209.39,1e-08]
[1759136404633,59.3292502,209.4,209.39,1e-08]
[1759136404833,58.5992502,209.4,209.39,1e-08]
[1759136405126,21.8192502,209.4,209.39,1e-08]
[1759136405332,58.6192502,209.4,209.39,1e-08]
[1759136405728,59.3292502,209.4,209.39,1e-08]
[1759136405921,22.5292502,209.4,209.39,1e-08]
[1759136406128,33.59559401,209.39,209.35,1e-08]
[1759136406330,41.12785458,209.36,209.33,1e-08]
[1759136406625,18.37251194,209.34,209.33,1e-08]
[1759136407125,57.16890911,209.34,209.33,1e-08]
[1759136407335,58.70116968,209.34,209.33,1e-08]
[1759136407516,58.70116968,209.34,209.33,0.72000001]
[1759136408527,21.82116968,209.34,209.33,0.72000001]
[1759136408727,58.72116968,209.34,209.33,1e-08]
[1759136412323,58.70116968,209.34,209.33,1e-08]
[1759136412626,21.82116968,209.34,209.33,1e-08]
[1759136413019,58.72116968,209.34,209.33,1e-08]
[1759136413224,21.82116968,209.34,209.33,1e-08]
[1759136413617,58.72116968,209.34,209.33,1e-08]
[1759136415520,21.82116968,209.34,209.33,1e-08]
[1759136415822,20.28890911,209.34,209.33,1e-08]
[1759136416010,58.70116968,209.34,209.33,1e-08]
[1759136417030,20.28890911,209.34,209.33,1e-08]
[1759136417214,57.16890911,209.34,209.33,0.66000001]
[1759136419016,20.28890911,209.34,209.33,0.66000001]
[1759136421442,15.51199118,209.34,209.33,0.66000001]
[1759136422844,20.28890911,209.34,209.33,0.66000001]
[1759136424161,20.95890911,209.34,209.33,1e-08]
[1759136424366,22.49116968,209.34,209.33,1e-08]
[1759136425757,59.35116968,209.34,209.33,1e-08]
[1759136426766,22.49116968,209.34,209.33,1e-08]
[1759136426940,59.35116968,209.34,209.33,1e-08]
[1759136427761,22.49116968,209.34,209.33,1e-08]
[1759136427947,59.35116968,209.34,209.33,1e-08]
[1759136429350,20.28890911,209.34,209.33,0.72000001]
[1759136429554,57.12890911,209.34,209.33,0.72000001]
[1759136429955,57.12890911,209.34,209.33,1e-08]
[1759136431954,57.79890911,209.34,209.33,1e-08]
[1759136433655,20.95890911,209.34,209.33,1e-08]
[1759136433964,57.77890911,209.34,209.33,1e-08]
[1759136435571,0.58639717,209.34,209.33,0.72000001]
[1759136435872,32.7067094,209.44,209.33,0.72000001]
[1759136436177,26.0,209.4,209.33,0.72000001]
[1759136436468,26.0,209.38,209.33,0.72000001]
[1759136436876,26.0,209.38,209.33,1e-08]
[1759136437577,4.77584429,209.39,209.33,1e-08]
[1759136437872,26.0,209.38,209.33,1e-08]
[1759136438080,26.0,209.36,209.33,1e-08]
[1759136439873,26.0,209.35,209.33,1e-08]
[1759136442661,26.0,209.37,209.33,1e-08]
[1759136443176,26.0,209.38,209.33,1e-08]
[1759136444869,26.0,209.39,209.33,1e-08]
[1759136446065,0.67,209.4,209.33,1e-08]
[1759136446459,26.0,209.37,209.33,1e-08]
[1759136447073,0.67,209.39,209.33,1e-08]
[1759136448183,26.0,209.4,209.33,1e-08]
[1759136451185,26.0,209.4,209.33,16.72001147]
[1759136452077,0.67,209.42,209.33,53.60001147]
[1759136452273,2.39313087,209.43,209.33,53.60001147]
[1759136452474,28.39313087,209.43,209.33,53.60001147]
[1759136452678,29.06313087,209.43,209.33,53.60001147]
[1759136453171,29.06313087,209.43,209.33,77.48574213]
[1759136453483,0.67,209.42,209.33,77.48574213]
[1759136454384,0.67,209.42,209.35,16.71841413]
[1759136454687,0.67,209.42,209.36,36.88]
[1759136454864,0.67,209.42,209.37,36.88]
[1759136455064,0.67,209.42,209.35,16.71841413]
[1759136455684,0.67,209.42,209.36,36.88]
[1759136455872,0.67,209.42,209.37,36.88]
[1759136456072,26.0,209.43,209.38,16.71601871]
[1759136456392,26.67,209.43,209.38,16.71601871]
[1759136456889,0.67,209.42,209.38,16.71601871]
[1759136457683,0.67,209.42,209.37,36.88]
[1759136457875,0.67,209.42,209.35,16.71841413]
[1759136458074,0.67,209.42,209.36,36.86]
[1759136458279,26.0,209.44,209.37,36.86]
[1759136458778,26.0,209.44,209.38,36.86]
[1759136458973,0.67,209.45,209.35,40.6018629]
[1759136459185,0.67,209.44,209.36,36.86]
[1759136459483,0.67,209.43,209.35,16.71841413]
[1759136459687,0.67,209.42,209.36,36.88]
[1759136459890,0.67,209.41,209.36,36.88]
[1759136460084,0.67,209.41,209.35,16.71841413]
[1759136460287,0.67,209.41,209.36,36.88]
[1759136460476,0.67,209.41,209.37,36.88]
[1759136460675,0.67,209.41,209.33,1e-08]
[1759136460980,0.67,209.41,209.34,36.88]
[1759136461189,0.67,209.41,209.35,36.88]
[1759136461383,0.67,209.4,209.33,1e-08]
[1759136461776,0.67,209.4,209.34,36.88]
[1759136462682,0.67,209.4,209.35,4.77668975]
[1759136462884,0.67,209.39,209.36,36.88]
[1759136463395,0.67,209.39,209.35,4.77668975]
[1759136463396,0.67,209.39,209.37,36.88]
[1759136464199,0.67,209.39,209.38,4.77600534]
[1759136466986,0.67,209.39,209.37,36.86]
[1759136467179,0.67,209.38,209.37,36.86]
[1759136468797,0.67,209.38,209.34,4.77691793]
[1759136469093,0.67,209.37,209.35,36.86]
[1759136469485,0.67,209.39,209.35,36.86]
[1759136469982,0.67,209.39,209.33,1e-08]
[1759136470183,0.67,209.41,209.34,36.84]
[1759136470688,0.67,209.43,209.34,36.84]
[1759136471086,0.67,209.43,209.35,16.71841413]
[1759136471283,13.59559401,209.47,209.35,16.71841413]
[1759136471503,26.0,209.44,209.36,36.86]
[1759136471891,26.67,209.44,209.36,36.86]
[1759136473001,26.0,209.45,209.35,35.82517315]
[1759136473201,0.67,209.43,209.33,1e-08]
[1759136473385,26.0,209.38,209.33,1e-08]
[1759136473896,26.0,209.38,209.33,11.94286534]
[1759136474102,0.67,209.42,209.33,53.61987127]
[1759136474302,0.67,209.45,209.34,13.59559401]
[1759136474499,0.67,209.44,209.35,37.44]
[1759136474700,0.67,209.43,209.33,16.71987127]
[1759136474908,0.67,209.42,209.36,37.44]
[1759136475089,0.67,209.41,209.37,4.77623346]
[1759136475404,0.67,209.4,209.37,4.77623346]
[1759136475805,0.67,209.39,209.37,4.77623346]
[1759136476002,0.67,209.38,209.33,1e-08]
[1759136477214,0.67,209.38,209.33,4.7771335]
[1759136477401,4.77560676,209.4,209.33,4.7771335]
[1759136477402,0.67,209.37,209.33,4.7771335]
[1759136477818,0.67,209.36,209.33,4.7771335]
[1759136478007,0.67,209.35,209.33,4.7771335]
[1759136478210,0.67,209.35,209.34,37.42]
[1759136478411,0.67,209.35,209.33,1e-08]
[1759136478606,0.67,209.35,209.33,37.42000001]
[1759136480121,0.67,209.35,209.34,4.77691793]
[1759136481223,0.67,209.35,209.33,1e-08]
[1759136481401,0.67,209.35,209.34,37.4]
[1759136481602,0.67,209.35,209.34,37.38]
[1759136482026,4.77560676,209.4,209.34,37.38]
[1759136482324,0.69,209.39,209.35,37.38]
[1759136482511,4.77560676,209.4,209.35,37.38]
[1759136482512,0.69,209.38,209.35,37.38]
[1759136482710,0.69,209.37,209.35,37.38]
[1759136482911,0.69,209.36,209.35,37.38]
[1759136483423,0.69,209.36,209.35,42.15668975]
[1759136483822,0.69,209.36,209.35,4.77668975]
[1759136484013,0.69,209.36,209.35,42.15668975]
[1759136484213,28.39313087,209.41,209.35,42.15668975]
[1759136484408,0.69,209.39,209.35,4.77668975]
[1759136484608,0.69,209.38,209.36,37.36]
[1759136484814,0.69,209.38,209.37,37.36]
[1759136486413,26.69,209.4,209.37,4.77623346]
[1759136486601,0.69,209.39,209.37,42.11623346]
[1759136486807,0.69,209.39,209.37,4.77623346]
[1759136487007,0.69,209.41,209.38,37.34]
[1759136487219,0.69,209.4,209.38,37.34]
[1759136487907,0.69,209.4,209.39,42.11577725]
[1759136488107,0.69,209.4,209.39,42.09577725]
[1759136489618,0.69,209.4,209.39,4.77577725]
[1759136489820,0.69,209.4,209.39,42.09577725]
[1759136490328,0.69,209.4,209.33,1e-08]
[1759136490513,0.69,209.4,209.34,37.32]
[1759136490715,0.69,209.4,209.35,37.3]
[1759136491738,0.69,209.39,209.35,37.3]
[1759136491935,0.69,209.41,209.35,37.3]
[1759136492626,0.69,209.4,209.36,4.77646159]
[1759136492826,0.69,209.39,209.36,4.77646159]
[1759136493328,0.69,209.39,209.37,37.3]
[1759136493724,0.69,209.39,209.38,37.28]
[1759136493912,26.0,209.42,209.38,37.28]
[1759136494113,0.69,209.41,209.36,16.71761558]
[1759136494315,0.69,209.4,209.37,37.28]
[1759136494508,0.69,209.4,209.38,37.28]
[1759136494714,0.69,209.4,209.39,4.77577725]
[1759136495621,0.69,209.4,209.39,42.05577725]
[1759136496233,0.69,209.4,209.39,42.03577725]
[1759136497426,0.69,209.4,209.33,1e-08]
[1759136497617,0.69,209.4,209.34,37.24]
[1759136497816,0.69,209.39,209.34,37.24]
[1759136498016,0.69,209.38,209.34,37.24]
[1759136499137,0.69,209.38,209.33,1e-08]
[1759136499341,0.69,209.37,209.34,37.24]
[1759136499721,0.69,209.37,209.33,1e-08]
[1759136500031,0.69,209.36,209.33,1e-08]
[1759136500433,0.69,209.35,209.34,37.22]
[1759136500637,0.69,209.35,209.33,1e-08]
[1759136500829,0.69,209.35,209.34,37.22]
[1759136501930,0.69,209.35,209.33,1e-08]
[1759136502115,0.69,209.35,209.33,37.22000001]
[1759136502320,0.69,209.34,209.33,37.22000001]
[1759136502741,26.69,209.34,209.33,1e-08]
[1759136503435,0.69,209.34,209.33,1e-08]
[1759136504322,0.69,209.34,209.3,0.1]
[1759136504532,39.59559401,209.27,209.22,0.1]
[1759136504728,13.59559401,209.26,209.22,0.1]
[1759136505141,40.28559401,209.26,209.22,0.1]
[1759136506129,44.21703463,209.26,209.22,0.1]
[1759136506324,45.06433815,209.26,209.22,0.1]
[1759136507849,48.8323308,209.26,209.22,0.1]
[1759136508230,48.8323308,209.26,209.25,1e-08]
[1759136508546,39.59559401,209.26,209.25,1e-08]
[1759136508725,2.2226772,209.29,209.25,1e-08]
[1759136509124,0.69,209.31,209.25,0.40000001]
[1759136509431,26.0,209.3,209.25,1e-08]
[1759136509934,0.69,209.29,209.25,1e-08]